bitfinex-derivatives/quotes_BTCF0:USTF0_20250318
["timestamp","ask_amount","ask_price","bid_price","bid_amount"]
[1742314269912,0.1910046,81637.0,81636.0,0.1984047]
[1742314270618,0.20306131,81637.0,81636.0,0.1984047]
[1742314270812,0.0685,81637.0,81636.0,0.1984047]
[1742314271011,0.0345,81637.0,81636.0,0.2323047]
[1742314271323,0.0347,81642.0,81641.0,0.1224972]
[1742314271515,0.00018372,81645.0,81644.0,0.1224927]
[1742314271921,0.00018372,81645.0,81644.0,0.3194927]
[1742314272315,0.00018372,81645.0,81644.0,0.33140104]
[1742314272516,0.1837008,81663.0,81662.0,0.1224642]
[1742314272716,0.2204008,81663.0,81662.0,0.1224642]
[1742314273015,0.2551008,81663.0,81662.0,0.1224642]
[1742314273415,0.0714,81663.0,81662.0,0.1224642]
[1742314273620,0.1938642,81663.0,81662.0,0.1224642]
[1742314274629,0.1958642,81663.0,81662.0,0.1224642]
[1742314274813,0.0734,81663.0,81662.0,0.1224642]
[1742314275013,0.0387,81663.0,81662.0,0.1224642]
[1742314275516,0.0427,81663.0,81662.0,0.1224642]
[1742314275820,0.006,81663.0,81662.0,0.1224642]
[1742314276221,0.005,81663.0,81662.0,0.1224642]
[1742314277016,0.0338,81679.0,81666.0,0.0612298]
[1742314277225,0.0367,81674.0,81670.0,0.1224537]
[1742314277410,0.0367,81674.0,81670.0,0.2488137]
[1742314277921,0.0367,81674.0,81670.0,0.25813082]
[1742314278530,0.0962152,81686.0,81685.0,0.1224312]
[1742314278531,0.1574297,81686.0,81685.0,0.1224312]
[1742314279122,0.1562297,81686.0,81685.0,0.1224312]
[1742314280027,0.1929297,81686.0,81685.0,0.1224312]
[1742314280529,0.1929297,81686.0,81685.0,0.1234312]
[1742314281317,0.1929297,81686.0,81685.0,0.001]
[1742314281525,0.20218617,81686.0,81685.0,0.001]
[1742314281716,0.20218617,81686.0,81685.0,0.002]
[1742314282617,0.1224417,81678.0,81677.0,0.00018372]
[1742314282813,0.6075617,81678.0,81677.0,0.00018372]
[1742314283021,0.7095617,81678.0,81677.0,0.00018372]
[1742314286122,0.9129617,81678.0,81677.0,0.00018372]
[1742314286634,1.0129617,81678.0,81677.0,0.00018372]
[1742314286930,1.0139617,81678.0,81677.0,0.00018372]
[1742314287125,0.9550617,81678.0,81677.0,0.00018372]
[1742314287326,1.0139617,81678.0,81677.0,0.00018372]
[1742314287632,1.0159617,81678.0,81677.0,0.00018372]
[1742314287825,0.9569617,81678.0,81677.0,0.00018372]
[1742314288324,0.9689617,81678.0,81677.0,0.00018372]
[1742314288524,0.9356617,81678.0,81677.0,0.00018372]
[1742314288730,0.1837001,81662.0,81661.0,0.1224671]
[1742314289124,0.3258762,81655.0,81654.0,0.00064]
[1742314289436,0.1224882,81648.0,81647.0,0.1224873]
[1742314289634,0.1224882,81648.0,81647.0,0.1877873]
[1742314290231,0.1224882,81648.0,81647.0,0.0653]
[1742314290435,0.1224987,81640.0,81639.0,0.00018372]
[1742314290822,0.1878987,81640.0,81639.0,0.03268372]
[1742314291022,0.1878987,81640.0,81639.0,0.00018372]
[1742314291327,0.1858987,81640.0,81639.0,0.12268392]
[1742314292032,0.1838987,81640.0,81639.0,0.12668392]
[1742314292226,0.3102187,81640.0,81639.0,0.00418372]
[1742314292429,0.3300187,81640.0,81639.0,0.00418372]
[1742314292624,0.3639187,81640.0,81639.0,0.00418372]
[1742314292825,0.3441187,81640.0,81639.0,0.00418372]
[1742314293126,0.4441187,81640.0,81639.0,0.00618372]
[1742314294020,0.3441187,81640.0,81639.0,0.00618372]
[1742314294230,0.3851187,81640.0,81639.0,0.00618372]
[1742314295224,0.3851187,81640.0,81639.0,0.12868392]
[1742314295433,0.3102187,81640.0,81639.0,0.12868392]
[1742314295648,0.3102187,81640.0,81639.0,0.00618372]
[1742314296132,0.4102187,81640.0,81639.0,0.00618372]
[1742314296627,0.3102187,81640.0,81639.0,0.12868392]
[1742314297328,0.4102187,81640.0,81639.0,0.12868392]
[1742314297528,0.3102187,81640.0,81639.0,0.12768392]
[1742314298328,0.3102187,81640.0,81639.0,0.12668392]
[1742314298535,0.0329,81640.0,81639.0,0.12668392]
[1742314298735,0.483298,81641.0,81640.0,0.1224987]
[1742314298935,0.483298,81641.0,81640.0,0.1554987]
[1742314299137,0.517498,81641.0,81640.0,0.1887987]
[1742314300539,0.517498,81641.0,81640.0,0.1907987]
[1742314301321,0.156698,81641.0,81640.0,0.1907987]
[1742314304737,0.00018372,81656.0,81654.0,0.1224762]
[1742314304925,0.00018372,81656.0,81655.0,0.1224762]
[1742314305132,0.00018372,81656.0,81655.0,0.1553762]
[1742314306039,0.00218372,81656.0,81655.0,0.1553762]
[1742314306835,0.00018372,81656.0,81655.0,0.1553762]
[1742314307038,0.00218372,81656.0,81655.0,0.1553762]
[1742314307941,0.00418372,81656.0,81655.0,0.1553762]
[1742314308625,0.00218372,81656.0,81655.0,0.1563762]
[1742314308828,0.12628,81672.0,81671.0,0.1224522]
[1742314309024,0.0327,81673.0,81672.0,0.1224507]
[1742314309238,0.00144,81702.0,81691.0,0.1224178]
[1742314309428,0.1874907,81692.0,81691.0,0.1224178]
[1742314309835,0.19969957,81692.0,81691.0,0.1224178]
[1742314310030,0.19969957,81692.0,81688.0,0.0612129]
[1742314310031,0.1836371,81690.0,81689.0,0.1224239]
[1742314310941,0.2177371,81690.0,81689.0,0.1224239]
[1742314311734,0.2237371,81690.0,81689.0,0.1224239]
[1742314312649,0.0451,81690.0,81689.0,0.1224239]
[1742314312939,0.011,81690.0,81689.0,0.1224239]
[1742314313145,0.011,81690.0,81688.0,0.0612129]
[1742314313146,0.00018372,81700.0,81699.0,0.1224103]
[1742314313339,0.26102381,81700.0,81699.0,0.1224103]
[1742314313839,0.28127482,81700.0,81699.0,0.1224103]
[1742314314041,0.03258372,81700.0,81699.0,0.1224103]
[1742314314341,0.00144,81719.0,81699.0,0.3608]
[1742314314551,0.01148788,81718.0,81717.0,0.1223833]
[1742314314851,0.13386968,81718.0,81717.0,0.1223833]
[1742314315234,0.13386968,81718.0,81711.0,0.1835835]
[1742314315235,0.1223908,81712.0,81711.0,0.1835835]
[1742314316439,0.1563908,81712.0,81711.0,0.1835835]
[1742314317542,0.1593908,81712.0,81711.0,0.1835835]
[1742314318047,0.037,81712.0,81711.0,0.1835835]
[1742314318348,0.1593908,81712.0,81711.0,0.1835835]
[1742314318943,0.037,81712.0,81711.0,0.1835835]
[1742314319549,0.003,81712.0,81711.0,0.1835835]
[1742314319752,0.003,81712.0,81711.0,0.2176835]
[1742314320249,0.1253908,81712.0,81711.0,0.2176835]
[1742314320837,0.1600908,81712.0,81711.0,0.2176835]
[1742314321336,0.0377,81712.0,81711.0,0.2176835]
[1742314321744,0.003,81712.0,81711.0,0.2176835]
[1742314322348,0.24199662,81864.0,81723.0,0.1223728]
[1742314322349,0.0333,81725.0,81723.0,0.1223728]
[1742314322550,0.0611841,81728.0,81725.0,0.1223713]
[1742314322843,0.1225534,81726.0,81725.0,0.1223713]
[1742314323049,0.1225534,81726.0,81725.0,0.1537713]
[1742314323549,0.0001836,81726.0,81725.0,0.16577131]
[1742314323750,0.0001836,81726.0,81725.0,0.19857131]
[1742314323941,0.0001836,81726.0,81725.0,0.20762688]
[1742314324248,0.0328,81736.0,81735.0,0.1223548]
[1742314324940,0.0611731,81742.0,81741.0,0.1835173]
[1742314325249,0.1223444,81743.0,81742.0,0.3058617]
[1742314326556,0.1547444,81743.0,81742.0,0.3058617]
[1742314327440,0.1547444,81743.0,81742.0,0.1835173]
[1742314327946,0.0611781,81735.0,81733.0,0.0001836]
[1742314328142,0.1547578,81734.0,81733.0,0.0001836]
[1742314328351,0.1884578,81734.0,81733.0,0.0001836]
[1742314329144,0.1884578,81734.0,81733.0,0.1225429]
[1742314330149,0.2884578,81734.0,81733.0,0.1225429]
[1742314330346,0.2884578,81734.0,81733.0,0.0001836]
[1742314330549,0.3919578,81734.0,81733.0,0.0001836]
[1742314331055,0.1223848,81716.0,81715.0,0.0611926]
[1742314331645,0.1223848,81716.0,81715.0,0.1835763]
[1742314331846,0.0337,81719.0,81718.0,0.1223818]
[1742314332954,0.0001836,81724.0,81723.0,0.1223743]
[1742314334353,0.0001836,81724.0,81723.0,0.1253743]
[1742314334755,0.0001836,81724.0,81723.0,0.1283743]
[1742314335551,0.1225564,81724.0,81723.0,0.1283743]
[1742314335752,0.1542564,81724.0,81723.0,0.1283743]
[1742314335946,0.1542564,81724.0,81723.0,0.1253743]
[1742314336148,0.1542564,81724.0,81723.0,0.1283743]
[1742314336743,0.0318836,81724.0,81723.0,0.1616743]
[1742314336947,0.0001836,81724.0,81723.0,0.1586743]
[1742314337152,0.0001836,81724.0,81723.0,0.1616743]
[1742314337854,0.0001836,81724.0,81723.0,0.1636743]
[1742314338656,0.0001836,81724.0,81723.0,0.1656743]
[1742314339658,0.3605564,81724.0,81723.0,0.1646743]
[1742314339956,0.3605564,81724.0,81723.0,0.0423]
[1742314340157,0.3605564,81724.0,81723.0,0.0413]
[1742314340461,0.3952564,81724.0,81723.0,0.1636743]
[1742314340649,0.2381836,81724.0,81723.0,0.1636743]
[1742314341056,0.2381836,81724.0,81723.0,0.1616743]
[1742314341450,0.0001836,81724.0,81723.0,0.1616743]
[1742314341657,0.0001836,81724.0,81723.0,0.2877543]
[1742314343052,0.00028546,81724.0,81723.0,0.2837543]
[1742314343262,0.00028546,81724.0,81723.0,0.2857543]
[1742314343562,0.00028546,81724.0,81723.0,0.3198543]
[1742314344357,0.00028546,81724.0,81723.0,0.3238543]
[1742314345062,0.00028546,81724.0,81723.0,0.3198543]
[1742314345259,0.00028546,81724.0,81723.0,0.3248543]
[1742314346751,0.00028546,81724.0,81723.0,0.3238543]
[1742314346958,0.00028546,81724.0,81723.0,0.3198543]
[1742314347163,0.00028546,81724.0,81723.0,0.3248543]
[1742314347462,0.00028546,81724.0,81723.0,0.3208543]
[1742314347663,0.00028546,81724.0,81723.0,0.3248543]
[1742314348259,0.00028546,81724.0,81723.0,0.3208543]
[1742314348464,0.2035,81738.0,81737.0,0.1223534]
[1742314348669,0.3258519,81738.0,81737.0,0.1223534]
[1742314349055,0.3258519,81738.0,81737.0,0.1529534]
[1742314349257,0.2035,81738.0,81737.0,0.1529534]
[1742314349452,0.0329,81743.0,81739.0,0.1223504]
[1742314349665,0.0329,81743.0,81742.0,0.1223459]
[1742314349861,0.20361602,81746.0,81745.0,0.1223414]
[1742314350065,0.00011602,81746.0,81745.0,0.1223414]
[1742314350368,0.00011602,81746.0,81745.0,0.1529414]
[1742314350673,0.032,81759.0,81758.0,0.1223219]
[1742314350850,0.0635,81759.0,81758.0,0.1223219]
[1742314351260,0.0635,81759.0,81758.0,0.1545219]
[1742314352168,0.0635,81759.0,81758.0,0.08565445]
[1742314352359,0.1858204,81759.0,81758.0,0.08565445]
[1742314353463,0.0635,81759.0,81758.0,0.08565445]
[1742314354358,0.267,81759.0,81758.0,0.08565445]
[1742314354765,0.3893204,81759.0,81758.0,0.08565445]
[1742314354967,0.267,81759.0,81758.0,0.05345445]
[1742314355368,0.235,81759.0,81758.0,0.08625445]
[1742314355963,0.3909204,81759.0,81758.0,0.08625445]
[1742314356664,0.3869934,81755.0,81754.0,0.1223268]
[1742314356858,0.3258324,81751.0,81736.0,0.88968]
[1742314357071,0.4518724,81751.0,81738.0,0.12604]
[1742314357368,0.5166724,81751.0,81741.0,0.0611733]
[1742314357562,0.5166724,81751.0,81750.0,0.12251738]
[1742314359976,0.5166724,81751.0,81750.0,0.0536407]
[1742314360569,0.3906324,81751.0,81750.0,0.0536407]
[1742314361273,0.7514324,81751.0,81750.0,0.0536407]
[1742314361773,0.2683,81751.0,81750.0,0.0536407]
[1742314362363,0.235,81751.0,81750.0,0.0844407]
[1742314362762,0.3573324,81751.0,81750.0,0.0844407]
[1742314362967,0.235,81751.0,81750.0,0.0844407]
[1742314364471,0.3573324,81751.0,81750.0,0.0844407]
[1742314365171,0.235,81751.0,81750.0,0.0844407]
[1742314365676,0.3573324,81751.0,81750.0,0.0844407]
[1742314365859,0.3897324,81751.0,81750.0,0.0844407]
[1742314366059,0.2674,81751.0,81750.0,0.0844407]
[1742314366265,0.235,81751.0,81750.0,0.0844407]
[1742314366775,0.37136869,81768.0,81755.0,0.1223264]
[1742314366776,0.3588251,81756.0,81755.0,0.1223264]
[1742314366960,0.3588251,81756.0,81755.0,0.1834264]
[1742314367160,0.3912251,81756.0,81755.0,0.1834264]
[1742314368767,0.3912249,81756.0,81755.0,0.1834264]
[1742314369467,0.2365,81756.0,81755.0,0.1834264]
[1742314369671,0.2365,81756.0,81755.0,0.2147264]
[1742314370478,0.00018308,81759.0,81758.0,0.0534568]
[1742314370479,0.20368308,81759.0,81758.0,0.0534568]
[1742314370689,0.20368308,81759.0,81758.0,0.4803568]
[1742314370975,1e-08,81764.0,81763.0,0.1223144]
[1742314371179,0.5643,81768.0,81767.0,0.1223085]
[1742314371675,0.2646518,81771.0,81770.0,0.0611519]
[1742314371979,0.3869543,81771.0,81770.0,0.0611519]
[1742314372479,0.4199543,81771.0,81770.0,0.1221519]
[1742314373574,0.2976518,81771.0,81770.0,0.1221519]
[1742314374974,0.2976518,81771.0,81770.0,0.1241519]
[1742314375583,0.2976518,81771.0,81770.0,0.1261519]
[1742314375779,0.3312518,81771.0,81770.0,0.1261519]
[1742314379477,0.2701,81771.0,81770.0,0.1261519]
[1742314379677,0.2035,81771.0,81770.0,0.1261519]
[1742314379882,0.2035,81772.0,81771.0,0.1223025]
[1742314380374,0.2035,81772.0,81771.0,0.11744588]
[1742314380578,0.2035,81772.0,81771.0,0.24340588]
[1742314380776,0.2035,81772.0,81771.0,0.29685177]
[1742314380979,0.3257982,81774.0,81773.0,0.1834491]
[1742314381185,0.3570982,81774.0,81773.0,0.1834491]
[1742314381387,0.2348,81774.0,81773.0,0.1834491]
[1742314381688,0.2035,81774.0,81773.0,0.1834491]
[1742314381990,0.2035,81777.0,81775.0,0.0611481]
[1742314382182,0.2348,81776.0,81775.0,0.1834446]
[1742314382578,0.357095,81776.0,81775.0,0.1834446]
[1742314382978,0.2348,81776.0,81775.0,0.1834446]
[1742314383589,0.2348,81779.0,81778.0,0.122292]
[1742314383775,0.2035,81779.0,81778.0,0.122292]
[1742314384093,0.01591149,81799.0,81778.0,0.122292]
[1742314384094,0.00965313,81791.0,81790.0,0.1222741]
[1742314384279,0.0611314,81798.0,81797.0,0.1833916]
[1742314384791,0.0611314,81798.0,81797.0,0.2171916]
[1742314384994,0.0943314,81798.0,81797.0,0.2171916]
[1742314385194,0.0332,81798.0,81797.0,0.2171916]
[1742314385391,0.08500008,81800.0,81799.0,0.1222606]
[1742314385795,0.08500008,81800.0,81799.0,0.1560606]
[1742314386192,0.11820008,81800.0,81799.0,0.1560606]
[1742314386394,0.24045918,81800.0,81799.0,0.1560606]
[1742314387281,0.11820008,81800.0,81799.0,0.1560606]
[1742314387486,0.08500008,81800.0,81799.0,0.1560606]
[1742314392093,0.07810748,81800.0,81799.0,0.1560606]
[1742314394293,0.07810748,81800.0,81799.0,0.5168606]
[1742314394497,0.07810748,81800.0,81799.0,0.1560606]
[1742314395791,0.07810748,81800.0,81799.0,0.5168606]
[1742314396793,0.07810748,81800.0,81799.0,0.5495606]
[1742314398510,0.07810748,81800.0,81799.0,0.1887606]
[1742314398700,0.07810748,81800.0,81799.0,0.3146006]
[1742314399207,0.20036658,81800.0,81799.0,0.1549606]
[1742314399403,0.26316658,81800.0,81799.0,0.1549606]
[1742314399595,0.17270748,81800.0,81799.0,0.1864606]
[1742314400099,0.14150748,81800.0,81799.0,0.1894606]
[1742314400298,0.10970748,81800.0,81799.0,0.1934606]
[1742314401001,0.10970748,81800.0,81799.0,0.1894606]
[1742314401191,0.10970748,81800.0,81799.0,0.1924606]
[1742314401898,0.23196658,81800.0,81799.0,0.1924606]
[1742314402299,0.36336658,81800.0,81799.0,0.006]
[1742314402499,0.32449688,81800.0,81799.0,0.1222606]
[1742314402907,0.38562758,81800.0,81799.0,0.05642748]
[1742314403413,0.38562758,81800.0,81799.0,0.08912748]
[1742314404006,0.20223778,81800.0,81799.0,0.08912748]
[1742314404204,0.14110748,81800.0,81799.0,0.12152748]
[1742314405102,0.26336658,81800.0,81799.0,0.12152748]
[1742314405511,0.23196658,81800.0,81799.0,0.12152748]
[1742314405715,0.10970748,81800.0,81799.0,0.12152748]
[1742314407509,0.23196658,81800.0,81799.0,0.12152748]
[1742314408015,0.26526658,81800.0,81799.0,0.12152748]
[1742314408613,0.14300748,81800.0,81799.0,0.12152748]
[1742314409002,0.14300748,81800.0,81799.0,0.11852748]
[1742314409202,0.26526658,81800.0,81799.0,0.12152748]
[1742314409517,0.14300748,81800.0,81799.0,0.12452748]
[1742314409717,0.14300748,81800.0,81799.0,0.12352748]
[1742314410219,0.14300748,81800.0,81799.0,0.12452748]
[1742314410415,0.10970748,81800.0,81799.0,0.12452748]
[1742314412420,0.10970748,81800.0,81799.0,0.05569939]
[1742314412611,0.14040748,81800.0,81799.0,0.17795999]
[1742314413209,0.14040748,81800.0,81799.0,0.10913195]
[1742314413814,0.10970748,81800.0,81799.0,0.10913195]
[1742314414009,0.10970748,81800.0,81798.0,0.1258]
[1742314414318,0.1533606,81799.0,81798.0,0.2480621]
[1742314414710,0.1855606,81799.0,81798.0,0.2480621]
[1742314416414,0.1855606,81799.0,81798.0,0.2540621]
[1742314416927,0.1855606,81799.0,81798.0,0.2510621]
[1742314417127,0.1855606,81799.0,81798.0,0.2480621]
[1742314417521,0.1855606,81799.0,81798.0,0.2490621]
[1742314417824,0.2855606,81799.0,81798.0,0.001]
[1742314418430,0.1222651,81796.0,81795.0,0.80514302]
[1742314418626,0.12228,81786.0,81785.0,0.4159]
[1742314419031,0.12228,81786.0,81785.0,0.5381815]
[1742314419223,0.31608,81786.0,81785.0,0.5381815]
[1742314419423,0.21608,81786.0,81785.0,0.5381815]
[1742314419931,0.064,81786.0,81785.0,0.5421815]
[1742314420134,0.18628,81786.0,81785.0,0.5731815]
[1742314420430,0.18628,81786.0,81785.0,0.6071815]
[1742314420628,0.064,81786.0,81785.0,0.6111815]
[1742314420936,0.064,81786.0,81785.0,0.7369815]
[1742314421122,0.18628,81786.0,81785.0,0.7369815]
[1742314422530,0.18628,81786.0,81785.0,0.7349815]
[1742314422734,0.18628,81786.0,81785.0,0.3170815]
[1742314423030,0.18628,81786.0,81785.0,0.2830815]
[1742314423249,0.18628,81786.0,81785.0,0.21423764]
[1742314423429,0.18628,81786.0,81785.0,0.21223764]
[1742314423630,0.18628,81786.0,81785.0,0.01959501]
[1742314424335,0.38978,81786.0,81785.0,0.004]
[1742314424637,0.38978,81786.0,81762.0,0.4159]
[1742314424638,0.1222905,81779.0,81777.0,0.0611467]
[1742314424826,0.4830905,81779.0,81777.0,0.0611467]
[1742314425422,0.5801905,81779.0,81775.0,0.0611479]
[1742314425640,0.5801905,81779.0,81773.0,0.061149]
[1742314425824,0.2173905,81779.0,81778.0,1.010572]
[1742314426026,0.2163905,81779.0,81778.0,1.010572]
[1742314426223,0.2163905,81779.0,81778.0,0.88828]
[1742314426424,0.2163905,81779.0,81778.0,1.011572]
[1742314426825,0.2163905,81779.0,81778.0,1.012572]
[1742314427138,0.4198905,81779.0,81778.0,1.012572]
[1742314427536,0.4198905,81779.0,81778.0,0.89028]
[1742314427741,0.4198905,81779.0,81778.0,1.012572]
[1742314427926,0.4198905,81779.0,81778.0,0.89028]
[1742314428238,0.4198905,81779.0,81778.0,1.012572]
[1742314428843,0.4198905,81779.0,81778.0,0.89028]
[1742314429345,0.5198905,81779.0,81778.0,0.89028]
[1742314429632,0.4198905,81779.0,81778.0,1.011572]
[1742314429836,0.4208905,81779.0,81778.0,1.011572]
[1742314430039,0.4208905,81779.0,81778.0,1.041972]
[1742314430040,0.4218905,81779.0,81778.0,1.041972]
[1742314430437,0.4228905,81779.0,81778.0,1.041972]
[1742314431137,0.7836905,81779.0,81778.0,1.041972]
[1742314431325,0.8836905,81779.0,81778.0,0.91968]
[1742314431530,0.8836905,81779.0,81778.0,0.88828]
[1742314431730,0.8836905,81779.0,81778.0,1.010572]
[1742314432237,0.8836905,81779.0,81778.0,0.88828]
[1742314432437,0.8836905,81779.0,81778.0,1.010572]
[1742314432632,0.7836905,81779.0,81778.0,1.010572]
[1742314432833,0.7816905,81779.0,81778.0,1.010572]
[1742314433034,0.7816905,81779.0,81778.0,1.041372]
[1742314433534,0.7806905,81779.0,81778.0,1.041372]
[1742314433745,0.7826905,81779.0,81778.0,1.041372]
[1742314434143,0.7816905,81779.0,81778.0,1.041372]
[1742314434447,0.8806905,81779.0,81778.0,0.91908]
[1742314434741,0.8806905,81779.0,81778.0,0.88828]
[1742314434941,0.8806905,81779.0,81778.0,1.010572]
[1742314435134,0.7806905,81779.0,81778.0,1.010572]
[1742314435336,0.7806905,81779.0,81778.0,1.041372]
[1742314437248,0.7816905,81779.0,81778.0,1.041372]
[1742314437848,0.7806905,81779.0,81778.0,1.041372]
[1742314438646,0.7806905,81779.0,81778.0,1.074272]
[1742314438849,0.8806905,81779.0,81778.0,0.8194262]
[1742314439150,0.7806905,81779.0,81778.0,0.9417182]
[1742314439355,0.8806905,81779.0,81778.0,0.9417182]
[1742314439849,0.8806905,81779.0,81778.0,0.87286421]
[1742314440238,0.8816905,81779.0,81778.0,0.90416421]
[1742314440639,0.8826905,81779.0,81778.0,0.90416421]
[1742314441141,0.8816905,81779.0,81778.0,0.90416421]
[1742314441351,0.8826905,81779.0,81778.0,0.90416421]
[1742314442547,0.5468905,81779.0,81778.0,0.90416421]
[1742314442753,0.002,81779.0,81778.0,0.96976421]
[1742314443142,0.1242905,81779.0,81778.0,0.96976421]
[1742314443342,0.1884905,81779.0,81778.0,0.96976421]
[1742314443542,0.1864905,81779.0,81778.0,0.96976421]
[1742314443746,0.1884905,81779.0,81778.0,0.96976421]
[1742314444139,0.1874905,81779.0,81778.0,0.96976421]
[1742314444352,0.1874905,81779.0,81778.0,0.97176421]
[1742314444950,0.1874905,81779.0,81778.0,0.97076421]
[1742314445150,0.1864905,81779.0,81778.0,0.97176421]
[1742314445352,0.2864905,81779.0,81778.0,0.78287221]
[1742314445557,0.1864905,81779.0,81778.0,0.90616421]
[1742314445943,0.1864905,81779.0,81778.0,0.93656421]
[1742314446356,0.2182905,81779.0,81778.0,0.93656421]
[1742314446557,0.1864905,81779.0,81778.0,0.93656421]
[1742314446744,0.1864905,81779.0,81778.0,0.93556421]
[1742314446945,0.1864905,81779.0,81778.0,0.93656421]
[1742314447345,0.3899905,81779.0,81778.0,0.93656421]
[1742314447756,0.1874905,81779.0,81778.0,0.93456421]
[1742314448455,0.1864905,81779.0,81778.0,0.93556421]
[1742314448655,0.1864905,81779.0,81778.0,0.93656421]
[1742314449557,0.5472905,81779.0,81778.0,0.8677104]
[1742314449755,0.6472905,81779.0,81778.0,0.8677104]
[1742314449946,0.6472905,81779.0,81778.0,0.76845651]
[1742314450262,0.5472905,81779.0,81778.0,0.52970931]
[1742314450450,0.6472905,81779.0,81778.0,0.52970931]
[1742314450650,0.5472905,81779.0,81778.0,0.44555387]
[1742314450852,0.6472905,81779.0,81778.0,0.44555387]
[1742314451156,0.6472905,81779.0,81778.0,0.44455387]
[1742314451351,0.6472905,81779.0,81778.0,0.56684587]
[1742314452158,0.5472905,81779.0,81778.0,0.56684587]
[1742314452752,0.5472905,81779.0,81778.0,0.63134587]
[1742314453273,0.5472905,81779.0,81778.0,0.186792]
[1742314453457,0.5142905,81779.0,81778.0,0.186792]
[1742314453653,0.1534905,81779.0,81778.0,0.187792]
[1742314453858,0.1534905,81779.0,81778.0,0.188792]
[1742314454060,0.0315,81783.0,81782.0,0.122286]
[1742314454249,0.4830821,81785.0,81784.0,0.122283]
[1742314454455,0.3608,81785.0,81784.0,0.122283]
[1742314454652,0.4830815,81785.0,81784.0,0.153183]
[1742314454958,0.3608,81785.0,81784.0,0.153183]
[1742314455160,0.0611393,81787.0,81784.0,0.153183]
[1742314455161,0.12245238,81794.0,81792.0,0.183405]
[1742314455360,0.15395238,81794.0,81793.0,0.1840696]
[1742314455556,0.00018348,81794.0,81793.0,0.1840696]
[1742314456559,0.00018348,81794.0,81793.0,0.2170696]
[1742314456967,0.00118348,81794.0,81793.0,0.2170696]
[1742314457167,0.12345158,81794.0,81793.0,0.2170696]
[1742314457668,0.03408348,81794.0,81793.0,0.2170696]
[1742314457963,0.19005158,81794.0,81793.0,0.2170696]
[1742314458168,0.06778348,81794.0,81793.0,0.2170696]
[1742314458369,0.03608348,81794.0,81793.0,0.2170696]
[1742314459064,0.03608348,81794.0,81793.0,0.5778696]
[1742314459271,0.07810748,81800.0,81799.0,0.1222606]
[1742314459865,0.07810748,81800.0,81799.0,0.05343397]
[1742314460071,0.07810748,81800.0,81799.0,0.11913397]
[1742314460780,0.08410748,81800.0,81799.0,0.11913397]
[1742314461166,0.08410748,81800.0,81799.0,0.05030487]
[1742314461565,0.08410748,81800.0,81799.0,0.17256547]
[1742314467676,0.00903411,81800.0,81799.0,0.58846547]
[1742314472177,1e-08,81800.0,81799.0,0.58846547]
[1742314473093,0.033,81816.0,81805.0,0.0611257]
[1742314473280,0.033,81816.0,81815.0,0.1222367]
[1742314473583,0.3257098,81833.0,81832.0,0.1222113]
[1742314473891,0.0611064,81831.0,81830.0,0.1833197]
[1742314474886,0.0941064,81831.0,81830.0,0.1833197]
[1742314475087,0.0961064,81831.0,81830.0,0.1833197]
[1742314475290,0.0961064,81831.0,81830.0,0.19565893]
[1742314475672,0.035,81831.0,81830.0,0.19565893]
[1742314476972,0.037,81831.0,81830.0,0.20502365]
[1742314477577,0.004,81831.0,81830.0,0.56582365]
[1742314480586,0.002,81831.0,81830.0,0.56582365]
[1742314480797,0.004,81831.0,81830.0,0.56582365]
[1742314482182,0.0633,81845.0,81844.0,0.1221934]
[1742314482491,0.0633,81845.0,81844.0,0.2477534]
[1742314482681,0.2035,81857.0,81856.0,0.1221755]
[1742314483283,0.2363,81857.0,81856.0,0.1221755]
[1742314483897,0.2694,81857.0,81856.0,0.1221755]
[1742314484396,0.392574,81857.0,81856.0,0.1221755]
[1742314485380,0.393574,81857.0,81856.0,0.1221755]
[1742314485994,0.393574,81857.0,81856.0,0.11539025]
[1742314486198,0.40602731,81857.0,81856.0,0.11539025]
[1742314486400,0.190074,81857.0,81856.0,0.11539025]
[1742314486595,0.0679,81857.0,81856.0,0.11539025]
[1742314486800,0.190074,81857.0,81856.0,0.11539025]
[1742314487391,0.0679,81857.0,81856.0,0.11539025]
[1742314488289,0.190074,81857.0,81856.0,0.11539025]
[1742314490789,0.0679,81857.0,81856.0,0.11539025]
[1742314491000,0.0679,81857.0,81856.0,0.17729025]
[1742314491395,0.002,81857.0,81856.0,0.17729025]
[1742314491802,1e-07,81857.0,81856.0,0.17729025]
[1742314492103,0.0619,81872.0,81871.0,0.1221531]
[1742314492305,0.0619,81872.0,81871.0,0.2476331]
[1742314492696,0.0619,81872.0,81871.0,0.31783588]
[1742314494901,0.0619,81872.0,81871.0,0.68150729]
[1742314495505,0.0307,81880.0,81879.0,0.1221412]
[1742314495702,0.3608,81888.0,81883.0,0.1221352]
[1742314495901,0.0334,81887.0,81883.0,0.1221352]
[1742314496411,0.30614062,81884.0,81883.0,0.4829352]
[1742314496600,0.30744869,81889.0,81888.0,0.1221277]
[1742314496904,0.30744869,81889.0,81888.0,0.2476077]
[1742314497109,0.11803649,81889.0,81888.0,0.32250902]
[1742314497405,0.11263347,81891.0,81890.0,0.1221248]
[1742314497606,0.11263347,81891.0,81890.0,0.4829248]
[1742314497804,0.0304,81897.0,81896.0,0.1221158]
[1742314497995,0.0304,81897.0,81896.0,1.1351558]
[1742314498197,0.0304,81897.0,81896.0,1.1979558]
[1742314498393,0.0304,81897.0,81896.0,1.2292558]
[1742314499204,0.1525143,81897.0,81896.0,1.1664558]
[1742314499802,0.0304,81897.0,81896.0,1.1351558]
[1742314500003,0.0304,81897.0,81896.0,1.1675558]
[1742314500194,0.0304,81897.0,81896.0,1.0741158]
[1742314500397,0.0304,81897.0,81896.0,1.1995158]
[1742314502514,0.1,81900.0,81899.0,0.1221113]
[1742314502899,0.1,81900.0,81899.0,0.1864113]
[1742314503212,0.1,81900.0,81899.0,0.3118113]
[1742314504802,0.0663481,81900.0,81899.0,0.3118113]
[1742314505010,0.3608,81925.0,81924.0,0.1220741]
[1742314505213,0.0302,81932.0,81931.0,0.1220636]
[1742314505709,0.0333,81936.0,81935.0,0.1220577]
[1742314505910,0.5161562,81936.0,81935.0,0.1220577]
[1742314506313,0.0333,81936.0,81935.0,0.1220577]
[1742314506517,0.0333,81936.0,81935.0,0.13441335]
[1742314506907,0.2368,81936.0,81935.0,0.13441335]
[1742314507102,0.1553562,81936.0,81935.0,0.16761335]
[1742314507804,0.0333,81936.0,81935.0,0.16761335]
[1742314508712,0.0333,81936.0,81929.0,0.1220655]
[1742314508713,0.1831014,81930.0,81929.0,0.1220655]
[1742314508914,0.1831014,81930.0,81929.0,0.13450652]
[1742314509118,0.1831014,81930.0,81929.0,0.01244102]
[1742314509312,0.0610359,81926.0,81922.0,1.30394]
[1742314509512,0.1220756,81923.0,81922.0,1.4253353]
[1742314510018,0.1538756,81923.0,81922.0,1.4375512]